Cogmind - Beta 16 @@@ ROGUE MODE // 2025.10.31 @ 19:02:13 Player: saltine Result: Destroyed by G-34 Mercenary with Small Laser Performance ------------- Evolutions (0) 0 Regions Visited (1) 200 Robots Destroyed (4) 20 Value Destroyed (91) 91 Prototype IDs (0) 0 Alien Tech Used (0) 0 Bonus (0) 0 TOTAL SCORE: 311 Bonus ------- None Cogmind --------- Core Integrity 0/250 Matter 248/300 Energy 100/100 System Corruption 0% Temperature Cool (6) Movement Core (100) Ox1 Location -10/Materials Parts ------- > --- POWER (1) -------- (None) > --- PROPULSION (2) --- (None) > --- UTILITY (2) ------ Small Storage Unit > --- WEAPON (2) ------- Light Assault Rifle > --- INVENTORY (8) ---- Light Ion Engine Light Ion Engine Light Treads Aluminum Leg Wheel Wheel Hover Unit Peak State ------------ > --- POWER ------------ Ion Engine > --- PROPULSION ------- Light Treads Aluminum Leg > --- UTILITY ---------- Small Storage Unit > --- WEAPON ----------- Assault Rifle Assault Rifle > --- INVENTORY -------- Light Ion Engine Light Treads Aluminum Leg Wheel Wheel Light Assault Rifle [Rating: 6] Favorites ----------- Power Ion Engine Engine Ion Engine Propulsion Light Treads Treads Light Treads Leg Aluminum Leg Utility Small Storage Unit Storage Small Storage Unit Weapon Assault Rifle Ballistic Gun Assault Rifle Build | -11 -10 ------- Run | Yrd Mat Slots Evolved . | . . Power . | . . Propulsion . | . . Utility . | . . Weapon . | . . Parts Attached 7 | 6 1 Power 1 | 1 . Engine 1 | 1 . Core . | . . Reactor . | . . Propulsion 2 | 2 . Treads 1 | 1 . Leg 1 | 1 . Wheel . | . . Hover . | . . Flight . | . . Utility 1 | 1 . Device . | . . Storage 1 | 1 . Processor . | . . Hackware . | . . Protection . | . . Artifact . | . . Weapon 3 | 2 1 Energy Gun . | . . Energy Cannon . | . . Ballistic Gun 3 | 2 1 Ballistic Cannon . | . . Launcher . | . . Special Weapon . | . . Impact Weapon . | . . Slashing Weapon . | . . Piercing Weapon . | . . Special Melee Weapon . | . . Unidentified Prototypes . | . . Parts Lost 5 | . 5 Power 1 | . 1 Propulsion 2 | . 2 Utility . | . . Weapon 2 | . 2 Highest Loss Streak 5 | . 5 To Critical Strikes . | . . Average Backups 6 | 4 7 Power 1 | . 1 Propulsion 4 | 3 4 Utility . | . . Weapon . | . . Tool/Special . | . . Unused Backups 7 | . 7 Power 2 | . 2 Propulsion 5 | . 5 Utility . | . . Weapon . | . . Tool/Special . | . . Average Slot Usage (%) 73 | . 73 Engine 11 | . 11 Treads 12 | . 12 Leg 11 | . 11 Storage 14 | . 14 Ballistic Gun 23 | . 23 Peak Build Rating 6 | 6 6 Average Rating 5 | 4 5 On Entrance 3 | . 6 Avg Prop Armor Cover (%) 13 | 12 13 Naked Turns . | . . Heaviest Build 14 | 14 14 Greatest Support 10 | 10 10 Greatest Overweight (x) 4 | 1 4 Average Overweight (x) . | . 1 Largest Inventory Capacity 8 | 8 8 Average Capacity 7 | 7 8 Most Carried 8 | 8 8 Average Carried 6 | 4 7 Final Capacity 8 | 8 8 Final Carried 7 | 6 7 Class Distribution -------------------- 100% | Mutant Dominant Class ---------------- Mutant | -10/Materials Resources | -11 -10 ----------- Run | Yrd Mat Matter Collected 285 | 205 80 Remotely . | . . Salvage Created 96 | 16 80 Parts 9 | 3 6 Haulers Intercepted . | . . Recyclers Shooed . | . . Parts Field Recycled . | . . Retrieved Matter . | . . Parts Self-Destructed . | . . Prevented . | . . Parts Restored . | . . Kills | -11 -10 ------- Run | Yrd Mat Combat Hostiles Destroyed 2 | . 2 Guns 2 | . 2 Classes Destroyed 3 | 1 2 Tunneler 1 | 1 . Operator 1 | . 1 Grunt 2 | . 2 Best Kill Streak 2 | 1 2 Combat Bots Only 2 | . 2 Max Kills in Single Turn 1 | 1 1 Gunslinging . | . . Exploded . | . . Melee . | . . Uniques/NPCs Destroyed . | . . Combat | -11 -10 -------- Run | Yrd Mat Hostile Shots Fired 130 | . 130 Missed 39 | . 39 Hits 91 | . 91 Projectile 91 | . 91 AOE 1 | . 1 Critical Strikes 1 | . 1 Damage Taken 901 | . 901 Core 254 | . 254 Absorbed by Shields . | . . Core Remaining (%) 100 | 100 . Volleys Fired 19 | 1 18 Largest 2 | 2 2 Hottest 40 | 40 40 Shots Fired 34 | 2 32 Gun 34 | 2 32 Cannon . | . . Launcher . | . . Special . | . . Kinetic 34 | 2 32 Thermal . | . . Explosive . | . . Electromagnetic . | . . Robot Hit Streak 4 | 1 4 Robot Miss Streak 2 | 1 2 Penetration Max . | . . Secondary Targets 1 | . 1 Max Gunslinging Chain 1 | . 1 Shots Hit Robots 17 | 1 16 Core Hits 7 | 1 6 Critical Kills . | . . Critical Parts Destroyed . | . . Critical Strikes . | . . Melee Attacks . | . . Impact . | . . Slashing . | . . Piercing . | . . Sneak Attacks . | . . Combat Hostiles . | . . Follow-up Attacks . | . . Damage Inflicted 199 | 12 187 Guns 197 | 12 185 Cannons . | . . Explosions . | . . Melee . | . . Ramming 2 | . 2 Kinetic 197 | 12 185 Thermal . | . . Explosive . | . . Electromagnetic . | . . Impact . | . . Slashing . | . . Piercing . | . . Highest Corruption . | . . Average Corruption . | . . Corruption Purged . | . . Corruption Blocked . | . . Overload Shots . | . . Overflow Damage . | . . Projectiles . | . . Explosions . | . . Melee . | . . Knockbacks . | . . Impact . | . . Kinetic . | . . Secondary . | . . Self-Inflicted Damage . | . . Shots . | . . Rammed . | . . Targets Rammed 1 | . 1 Kicked 1 | . 1 Crushed . | . . Highest Temperature . | . . Average Temperature . | . . Received Heat Transfer 204 | . 204 Siege Activations . | . . Martial Activations . | . . Shielding Activations . | . . Robots Disrupted . | . . Combat Hostiles . | . . Robots Corrupted . | . . Combat Hostiles . | . . Parts Fried . | . . Impact Corruptions . | . . Robots Melted . | . . Combat Hostiles . | . . Parts Melted . | . . Heat Transferred . | . . Parts Sabotaged . | . . Parts Stolen . | . . Parts Stripped . | . . Power Chain Reactions . | . . Alert | -11 -10 ------- Run | Yrd Mat Maximum Alert Level . | . . Low Security (%) 100 | 100 100 Level 1 . | . . Level 2 . | . . Level 3 . | . . Level 4 . | . . Level 5 . | . . High Security . | . . Max Security . | . . Peak Influence 40 | 5 40 Initial . | . . Average 4 | . 7 Influence Increases 66 | 5 61 Destroy 0b10 Robot/C 40 | . 40 Destroy 0b10 Robot/NC 10 | 5 5 Destroy Leader 10 | . 10 Successful Hack 5 | . 5 Destroy Structure 1 | . 1 Influence Decreases 66 | 5 61 Time Decay 46 | 5 41 Purge Threat 20 | . 20 Squads Dispatched 2 | . 2 Investigation 1 | . 1 Extermination . | . . Reinforcement 1 | . 1 Assault . | . . Garrison . | . . Intercept . | . . Searches Triggered . | . . Construction Impeded . | . . Haulers Reinforced . | . . Active Scanning Responses . | . . Cargo Convoy Interrupts . | . . Stealth | -11 -10 --------- Run | Yrd Mat Distress Signals 3 | . 3 Communications Jammed . | . . Distress Signals . | . . Times Spotted 14 | . 14 Peak Tracking Total 8 | . 8 Tactical Retreats . | . . Traps | -11 -10 ------- Run | Yrd Mat Traps Triggered . | . . Indirectly . | . . Trap Hack Attempts . | . . Triggered . | . . Disarmed . | . . Reprogrammed . | . . Reused . | . . Traps Extracted . | . . Installed . | . . Triggered . | . . Machines | -11 -10 ---------- Run | Yrd Mat Machines Disabled . | . . Max in Single Turn . | . . Machines Repaired . | . . Machines Dismantled . | . . Machines Sabotaged . | . . Overloaded Fab Kills . | . . Hacking | -11 -10 --------- Run | Yrd Mat Machines Accessed 1 | . 1 Terminals 1 | . 1 Fabricators . | . . Repair Stations . | . . Recycling Units . | . . Scanalyzers . | . . Garrison Access . | . . Total Hacks 7 | . 7 Successful 3 | . 3 Failed 4 | . 4 Catastrophic 1 | . 1 Database Lockouts . | . . Manual . | . . Terminals 7 | . 7 Fabricators . | . . Repair Stations . | . . Recycling Units . | . . Scanalyzers . | . . Garrison Access . | . . Terminal Hacks 3 | . 3 Alert Level 1 | . 1 Unreport Threat 1 | . 1 Hauler Manifests 1 | . 1 Fabricator Hacks . | . . Repair Station Hacks . | . . Recycling Unit Hacks . | . . Scanalyzer . | . . Garrison Access Hacks . | . . Unauthorized Hacks . | . . Terminals . | . . Fabricators . | . . Repair Stations . | . . Recycling Units . | . . Scanalyzers . | . . Garrison Access . | . . Data Cores Recovered 1 | . 1 Used . | . . Hacking Detections 1 | . 1 Full Trace Events 1 | . 1 Feedback Events . | . . Feedback Blocked . | . . Robot Schematics Acquired . | . . Robots Built . | . . Authchips . | . . Time . | . . Total Robot Build Rating . | . . Part Schematics Acquired . | . . Parts Built . | . . Authchips . | . . Time . | . . Total Part Build Rating . | . . Part Studies Acquired . | . . Parts Repaired . | . . Time . | . . Parts Recycled . | . . Recycled Matter . | . . Retrieved Matter . | . . Retrieved Components . | . . Parts Scanalyzed . | . . Part Schematics Acquired . | . . Parts Damaged . | . . Bothacking | -11 -10 ------------ Run | Yrd Mat Used RIF Installer . | . . Robots Hacked . | . . Non-combat . | . . Combat . | . . Robot Hacks Applied . | . . Relay Couplers Released . | . . Fabnet Peak Effective % . | . . Robots Rewired . | . . Allies Hacked . | . . Hacks Repelled . | . . Allies | -11 -10 -------- Run | Yrd Mat Total Allies . | . . Largest Group . | . . Highest-Rated Group . | . . Highest-Rated Ally . | . . Total Orders . | . . Ally Attacks . | . . Total Damage . | . . Kills . | . . Allies Corrupted . | . . Allies Melted . | . . Intel | -11 -10 ------- Run | Yrd Mat Active Infowar (turns) . | . . Robot Analysis Total . | . . Derelict Logs Recovered . | . . Drone Launches . | . . Drone Recoveries . | . . Exploration | -11 -10 ------------- Run | Yrd Mat Turns Passed 419 | 160 259 Spaces Moved 226 | 105 121 Core 64 | 31 33 Treads . | . . Legs 162 | 74 88 Wheels . | . . Hover . | . . Flight . | . . Fastest Speed 50 | 50 100 Average Speed 152 | 133 170 Slowest Speed 250 | 190 250 Overloaded Moves . | . . Propulsion Burnouts . | . . Robots Hopped . | . . Potential Cave-ins . | . . Cave-ins Triggered . | . . Exploration Rate (%) 13 | 6 21 Regions Visited 1 Branch Regions . Pre-discovered Areas . | . . Known Exits Taken . | . . Unknown Exits Taken 1 | 1 . Scrap Searched . | . . Spaces Dug . | . . Terrain Destroyed . | . . Melee . | . . Projectile . | . . AOE . | . . Terrain Rammed . | . . Walls Destroyed . | . . Machines Disabled . | . . Actions | -11 -10 --------- Run | Yrd Mat Total 266 | 123 143 Wait . | . . Move 225 | 104 121 Hop . | . . Pick Up 14 | 12 2 Fast Attach . | . . Attach 7 | 6 1 Detach . | . . Swap . | . . Drop . | . . Fire 19 | 1 18 Melee . | . . Ram . | . . Kick 1 | . 1 Crush . | . . Escape Stasis . | . . Rewire . | . . Trap . | . . Miscellaneous . | . . Route ------- -11/Scrapyard -10/Materials History --------- Turn | Location | Event 20 | -11/Scrapyard | Discovered new exit (range 15) 161 | -11/Scrapyard | Entered Materials 314 | -10/Materials | Build established: Mutant 396 | -10/Materials | Core integrity fell below 50% 416 | -10/Materials | Core integrity fell below 20% 420 | -10/Materials | Destroyed by G-34 Mercenary with Small Laser Last Messages --------------- 00304_ ALERT: Suspicious activity at Terminal M003. Dispatching Investigation squad. 00322_ K-01 Serf collects debris. 00334_ W-16 Scout sends out distress signal. 00334_ K-01 Serf collects debris. 00337_ W-16 Scout sends out distress signal. 00339_ K-01 Serf collects debris. 00351_ K-01 Serf cleans the Nuclear Reactor. 00355_ K-01 Serf collects debris. 00374_ Aluminum Leg destroyed. 00375_ Assault Rifle destroyed. 00375_ K-01 Serf collects debris. 00376_ Ion Engine destroyed. 00382_ G-34 Mercenary suffers critical hit (Destroy). 00382_ G-34 Mercenary destroyed. 00385_ K-01 Serf collects debris. 00389_ Assault Rifle destroyed. 00397_ Lgt. Treads destroyed. 00416_ Fusion Modulator explodes. 00416_ S-10 Pest destroyed. Map ----- +----------------------------------------------------+ | ????????????????????????????????????? | | ????????????????????????????????????? | | ????????????????????????????????????? | | ????????????????????????????????????? | | ????????????????????????????????????? | | #####???????????????????????????????? | | # #???????????????????????????????? | | # #???????????????????????????????? | | # #???????????????????????????????? | | # +???????????????????????????????? | | # #???????????????? ??????????????? | | # #??????????????? #?????????????? | | # ############### #?????????????? | | # T +?????????????? | | # #?????????????? | | # #?????????????? | | + ####???????????????? | | # #??????????????????? | | # #?????########?????? | | # ##### #???### ##????? | | #] """ #?????#???# ; ;#????? | | # """ #####+#####;;% ;##???? | | #^ ^^""" #!! ; ;* ; #???? | | # #!! "# ; ;##???? | | # #! ! T;g; ; #???? | | # # "# ;;@;;;;;##???? | | # #? ?#g; ##????? | | # ####% #? !??# ; ;;;;;#?????? | | # #??#* #?? ???# ### ????? | | # #??# #??? ???# #?? ""??? | | # #??# #####+##### ### Y" ?? | | # #??# # """ "" ?? | | #??# + """ ?? | | # #??# # """ ?? | | # #??##+######/####### # ""?? [?? | | # ???? ???? ???????? # ??? #? | | ? ??? ?? ""????????? #?#?????###? | | ?????? ?? ??????????? #??????????? | | ????? ???????????????#??????????? | | ????+ ??????????????????????????? | | ????# ???????????????????????????? | | ????# ???????????????????????????? | | ????# ???????????????????????????? | | ????# ???????????????????????????? | | ????# ???????????????????????????? | | ?????? ????????????????????????????? | | ????????????????????????????????????? | | ????????????????????????????????????? | | ????????????????????????????????????? | | ????????????????????????????????????? | +----------------------------------------------------+ Best States ------------- Heat Dissipation 25 Energy Generation 10 Energy Capacity 250 Matter Stores 262 Matter Capacity 300 Sight Range 16 Terrain Scan Density 10 Evasion (%) 50 Item Schematics ----------------- None Robot Schematics ------------------ None Fabricated ------------ Nothing Repaired ---------- Nothing Studied --------- None Alien Tech Used ----------------- None Achievements -------------- Ghost 'Em Challenges ------------ None Game ------ Seed SpectralArcsightNanovents Manual? 0 Play Time 00:06:44 Cumulative 607.8 hours Start 2025.10.31 @ 18:57:27 End 2025.10.31 @ 19:02:13 Sessions 1 Manual Loads 0 Difficulty Rogue Special Mode None Game No. 255 Rogue 255 Adventurer 0 Explorer 0 Win Type - Total 29 Types 9/4/9/2/1/0/1/1/1/1 Lore% 93 Gallery% 87 Achievement% 60 Wizard Run 0 Options --------- Layout 0 ASCII 0 Keyboard 0 Movement Arrows Keybinds 0 Fullscreen 2 Font 18/SmallcapsGlow Map View 76x50 Zoom Use 0% Tactical HUD 1 Map Filters NONE Filters NONE Steam 1 RUN: 0bacfeb3-8ab3-4b8f-a8fc-1e65420b2748